fUSD/lending_fUSD_20250103
["ID","MTS","AMOUNT","RATE_DAILY","PERIOD"]
[347506988,1735890638526,-483.6395653,9.547e-05,2]
[347506989,1735890638536,-1260.86,9.547e-05,2]
[347506990,1735890638545,-1337.42,9.547e-05,2]
[347506991,1735890638554,-500.0,9.547e-05,2]
[347506992,1735890638563,-500.0,9.547e-05,2]
[347506993,1735890638573,-951.59,9.547e-05,2]
[347506994,1735890638584,-555.19,9.547e-05,2]
[347506995,1735890638594,-500.0,9.547e-05,2]
[347506996,1735890638603,-1343.57,9.547e-05,2]
[347506997,1735890638615,-500.0,9.547e-05,2]
[347506998,1735890638625,-500.0,9.547e-05,2]
[347506999,1735890638635,-769.51,9.547e-05,2]
[347507000,1735890638644,-500.0,9.547e-05,2]
[347507001,1735890638654,-500.0,9.547e-05,2]
[347507002,1735890638664,-820.29,9.547e-05,2]
[347507003,1735890638673,-500.0,9.547e-05,2]
[347507004,1735890638682,-500.0,9.547e-05,2]
[347507005,1735890638692,-500.0,9.547e-05,2]
[347507006,1735890638703,-1458.69,9.547e-05,2]
[347507007,1735890638712,-1333.29,9.547e-05,2]
[347507008,1735890638721,-500.0,9.547e-05,2]
[347507009,1735890638731,-7258.48,9.547e-05,2]
[347507010,1735890638741,-500.0,9.547e-05,2]
[347507011,1735890638750,-500.0,9.547e-05,2]
[347507012,1735890638760,-500.0,9.547e-05,2]
[347507013,1735890638769,-500.0,9.547e-05,2]
[347507014,1735890638778,-1707.34,9.547e-05,2]
[347507015,1735890638787,-500.0,9.547e-05,2]
[347507016,1735890638797,-500.0,9.547e-05,2]
[347507017,1735890638806,-3260.8577347,9.547e-05,2]
[347507018,1735890638818,-2896.39516468,9.547e-05,2]
[347507019,1735890638830,-603.73848769,9.547e-05,2]
[347507020,1735890638843,-395.82931153,9.547e-05,2]
[347507021,1735890638854,-1819.9493014,9.547e-05,2]
[347507022,1735890638863,-108.5506986,9.547e-05,2]
[347507023,1735890638876,-391.4493014,9.547e-05,2]
[347507024,1735890638885,-851.21,9.547e-05,2]
[347507025,1735890638894,-6773.43,9.547e-05,2]
[347507026,1735890638904,-500.0,9.547e-05,2]
[347507027,1735890638913,-2995.59290496,9.547e-05,2]
[347507028,1735890639016,-902.63081299,9.547e-05,2]
[347507029,1735890639027,-4.29628205,9.547e-05,2]
[347507030,1735890639036,-500.0,9.547e-05,2]
[347507031,1735890639045,-500.0,9.547e-05,2]
[347507032,1735890639054,-500.0,9.547e-05,2]
[347507033,1735890639063,-526.72,9.547e-05,2]
[347507034,1735890639073,-500.0,9.547e-05,2]
[347507035,1735890639082,-1147.47,9.547e-05,2]
[347507036,1735890639092,-7962.75,9.547e-05,2]
[347507037,1735890639101,-913.77,9.547e-05,2]
[347507038,1735890639110,-500.0,9.547e-05,2]
[347507039,1735890639119,-500.0,9.547e-05,2]
[347507040,1735890639129,-194.20787303,9.547e-05,2]
[347507042,1735890640471,-29131.36212697,9.547e-05,2]
[347507043,1735890640481,-500.0,9.547e-05,2]
[347507044,1735890640491,-599.83,9.547e-05,2]
[347507045,1735890640500,-552.86,9.547e-05,2]
[347507046,1735890640510,-709.34,9.547e-05,2]
[347507047,1735890640519,-500.0,9.547e-05,2]
[347507048,1735890640529,-500.0,9.547e-05,2]
[347507049,1735890640538,-500.0,9.547e-05,2]
[347507050,1735890640548,-536.05,9.547e-05,2]
[347507051,1735890640558,-1871.49,9.547e-05,2]
[347507052,1735890640567,-500.0,9.547e-05,2]
[347507053,1735890640576,-3367.37,9.547e-05,2]
[347507054,1735890640589,-948.49,9.547e-05,2]
[347507055,1735890640598,-500.0,9.547e-05,2]
[347507056,1735890640608,-500.0,9.547e-05,2]
[347507057,1735890640617,-500.0,9.547e-05,2]
[347507058,1735890640626,-500.0,9.547e-05,2]
[347507059,1735890640636,-1536.96,9.547e-05,2]
[347507060,1735890640645,-5515.44,9.547e-05,2]
[347507061,1735890640655,-500.0,9.547e-05,2]
[347507062,1735890640664,-8965.68,9.547e-05,2]
[347507063,1735890640674,-500.0,9.547e-05,2]
[347507064,1735890640684,-500.0,9.547e-05,2]
[347507065,1735890640694,-659.32,9.547e-05,2]
[347507066,1735890640703,-2765.46,9.547e-05,2]
[347507067,1735890640713,-8053.38,9.547e-05,2]
[347507068,1735890640722,-500.0,9.547e-05,2]
[347507069,1735890640731,-14107.41,9.547e-05,2]
[347507070,1735890640740,-1602.92,9.547e-05,2]
[347507071,1735890640749,-604.93,9.547e-05,2]
[347507072,1735890640759,-500.0,9.547e-05,2]
[347507073,1735890640768,-1062.59,9.547e-05,2]
[347507074,1735890640777,-7087.2,9.547e-05,2]
[347507075,1735890640786,-537.33,9.547e-05,2]
[347507076,1735890640795,-500.0,9.547e-05,2]
[347507077,1735890640804,-500.0,9.547e-05,2]
[347507078,1735890640814,-381.49556829,9.547e-05,2]
[347507079,1735890640823,-815.54,9.547e-05,2]
[347507080,1735890640832,-500.0,9.547e-05,2]
[347507081,1735890640842,-500.0,9.547e-05,2]
[347507082,1735890640852,-500.0,9.547e-05,2]
[347507083,1735890640863,-4565.38,9.547e-05,2]
[347507084,1735890640872,-4018.22,9.547e-05,2]
[347507085,1735890640882,-662.84,9.547e-05,2]
[347507086,1735890640891,-3246.32,9.547e-05,2]
[347507087,1735890640901,-500.0,9.547e-05,2]
[347507088,1735890640911,-569.35422327,9.547e-05,2]
[347507089,1735890640920,-500.0,9.547e-05,2]
[347507090,1735890640930,-500.0,9.547e-05,2]
[347507091,1735890640939,-698.39,9.547e-05,2]
[347507092,1735890640949,-500.0,9.547e-05,2]
[347507093,1735890640958,-3294.3,9.547e-05,2]
[347507094,1735890640967,-500.0,9.547e-05,2]
[347507095,1735890640977,-500.0,9.547e-05,2]
[347507096,1735890640986,-708.09,9.547e-05,2]
[347507097,1735890641330,-500.0,9.547e-05,2]
[347507098,1735890641340,-500.0,9.547e-05,2]
[347507099,1735890641350,-1816.98,9.547e-05,2]
[347507100,1735890641359,-5917.39,9.547e-05,2]
[347507101,1735890641368,-1019.73,9.547e-05,2]
[347507102,1735890641378,-961.0,9.547e-05,2]
[347507103,1735890641388,-500.0,9.547e-05,2]
[347507104,1735890641403,-511.67,9.547e-05,2]
[347507105,1735890641412,-1754.29,9.547e-05,2]
[347507106,1735890641421,-717.73,9.547e-05,2]
[347507107,1735890641432,-1040.49,9.547e-05,2]
[347507108,1735890641443,-5844.96,9.547e-05,2]
[347507109,1735890641453,-890.37,9.547e-05,2]
[347507110,1735890641462,-1692.19,9.547e-05,2]
[347507111,1735890641474,-5061.86,9.547e-05,2]
[347507112,1735890641484,-500.0,9.547e-05,2]
[347507113,1735890641494,-500.0,9.547e-05,2]
[347507114,1735890641504,-500.0,9.547e-05,2]
[347507115,1735890641517,-3802.95,9.547e-05,2]
[347507116,1735890641526,-4394.02,9.547e-05,2]
[347507117,1735890641535,-10070.8,9.547e-05,2]
[347507118,1735890641545,-500.0,9.547e-05,2]
[347507119,1735890641554,-3638.03,9.547e-05,2]
[347507120,1735890641563,-3432.26,9.547e-05,2]
[347507121,1735890641573,-500.0,9.547e-05,2]
[347507122,1735890641582,-1867.83,9.547e-05,2]
[347507123,1735890641592,-500.0,9.547e-05,2]
[347507124,1735890641601,-500.0,9.547e-05,2]
[347507125,1735890641615,-500.0,9.547e-05,2]
[347507126,1735890641625,-500.0,9.547e-05,2]
[347507127,1735890641635,-500.0,9.547e-05,2]
[347507128,1735890641644,-798.45,9.547e-05,2]
[347507129,1735890641654,-500.0,9.547e-05,2]
[347507130,1735890641663,-2232.7,9.547e-05,2]
[347507131,1735890641673,-1133.18,9.547e-05,2]
[347507132,1735890641682,-5855.18019211,9.548e-05,2]
[347507133,1735890641724,-4919.72166071,9.548e-05,2]
[347507134,1735890641735,-515.90060392,9.548e-05,2]
[347507135,1735890641778,-4225.23,9.547e-05,2]
[347507136,1735890641788,-39629.65979474,9.548e-05,2]
[347507137,1735890641797,-446.71345766,9.548e-05,2]
[347507138,1735890641807,-500.0,9.548e-05,2]
[347507139,1735890641817,-500.0,9.548e-05,2]
[347507140,1735890641826,-2918.02,9.548e-05,2]
[347507141,1735890641836,-518.77733,9.548e-05,2]
[347507142,1735890641846,-500.0,9.548e-05,2]
[347507143,1735890641856,-1000.6,9.548e-05,2]
[347507144,1735890641865,-500.0,9.548e-05,2]
[347507145,1735890641875,-1928.23,9.548e-05,2]
[347507146,1735890641884,-500.0,9.548e-05,2]
[347507147,1735890641894,-1811.84,9.548e-05,2]
[347507148,1735890641903,-500.0,9.548e-05,2]
[347507149,1735890641913,-1219.466041,9.548e-05,2]
[347507150,1735890641922,-625.1,9.548e-05,2]
[347507151,1735890641932,-3725.28,9.548e-05,2]
[347507152,1735890641941,-500.0,9.548e-05,2]
[347507153,1735890641951,-500.0,9.548e-05,2]
[347507154,1735890641960,-155.355167,9.548e-05,2]
[347507155,1735890641969,-500.0,9.548e-05,2]
[347507156,1735890641978,-2797.05,9.548e-05,2]
[347507157,1735890641989,-172.058437,9.548e-05,2]
[347507158,1735890641998,-711.72,9.548e-05,2]
[347507159,1735890642008,-500.0,9.548e-05,2]
[347507160,1735890642018,-3205.37,9.548e-05,2]
[347507161,1735890642027,-500.0,9.548e-05,2]
[347507162,1735890642036,-500.0,9.548e-05,2]
[347507163,1735890642046,-500.0,9.548e-05,2]
[347507164,1735890642056,-500.0,9.548e-05,2]
[347507165,1735890642066,-500.0,9.548e-05,2]
[347507166,1735890642075,-2313.33,9.548e-05,2]
[347507167,1735890642085,-308.30372326,9.548e-05,2]
[347507168,1735890642095,-500.0,9.548e-05,2]
[347507169,1735890642104,-1930.2,9.548e-05,2]
[347507170,1735890642114,-500.0,9.548e-05,2]
[347507171,1735890642124,-1612.97,9.548e-05,2]
[347507172,1735890642134,-500.0,9.548e-05,2]
[347507173,1735890642144,-2988.7,9.548e-05,2]
[347507174,1735890642155,-1885.12,9.548e-05,2]
[347507175,1735890642166,-500.0,9.548e-05,2]
[347507176,1735890642175,-500.0,9.548e-05,2]
[347507177,1735890642185,-500.0,9.548e-05,2]
[347507178,1735890642195,-500.0,9.548e-05,2]
[347507179,1735890642204,-500.0,9.548e-05,2]
[347507180,1735890642214,-500.0,9.548e-05,2]
[347507181,1735890642223,-3063.45,9.548e-05,2]
[347507182,1735890642232,-1114.35,9.548e-05,2]
[347507183,1735890642242,-500.0,9.548e-05,2]
[347507184,1735890642251,-1362.75,9.548e-05,2]
[347507185,1735890642260,-500.0,9.548e-05,2]
[347507186,1735890642270,-500.0,9.548e-05,2]
[347507187,1735890642279,-500.0,9.548e-05,2]
[347507188,1735890642288,-500.0,9.548e-05,2]
[347507189,1735890642299,-500.0,9.548e-05,2]
[347507190,1735890642308,-500.0,9.548e-05,2]
[347507191,1735890642318,-500.0,9.548e-05,2]
[347507192,1735890642327,-500.0,9.548e-05,2]
[347507193,1735890642337,-3624.1,9.548e-05,2]
[347507194,1735890642346,-500.0,9.548e-05,2]
[347507195,1735890642356,-500.0,9.548e-05,2]
[347507196,1735890642366,-506.61,9.548e-05,2]
[347507197,1735890642376,-678.57,9.548e-05,2]
[347507198,1735890642385,-500.0,9.548e-05,2]
[347507199,1735890642399,-3543.92,9.548e-05,2]
[347507200,1735890642410,-216.7821688,9.548e-05,2]
[347507201,1735890642419,-574.06,9.548e-05,2]
[347507202,1735890642429,-500.0,9.548e-05,2]
[347507203,1735890642438,-500.0,9.548e-05,2]
[347507204,1735890642447,-500.0,9.548e-05,2]
[347507205,1735890642457,-500.0,9.548e-05,2]
[347507206,1735890642467,-568.46,9.548e-05,2]
[347507207,1735890642477,-500.0,9.548e-05,2]
[347507208,1735890642487,-500.0,9.548e-05,2]
[347507209,1735890642497,-500.0,9.548e-05,2]
[347507210,1735890642507,-1020.17,9.548e-05,2]
[347507211,1735890642517,-500.0,9.548e-05,2]
[347507212,1735890642526,-500.0,9.548e-05,2]
[347507213,1735890642535,-500.0,9.548e-05,2]
[347507214,1735890642544,-500.0,9.548e-05,2]
[347507215,1735890642555,-2161.07,9.548e-05,2]
[347507216,1735890642564,-781.6,9.548e-05,2]
[347507217,1735890642574,-3575.26,9.548e-05,2]
[347507218,1735890642583,-500.0,9.548e-05,2]
[347507219,1735890642595,-500.0,9.548e-05,2]
[347507220,1735890642605,-719.1,9.548e-05,2]
[347507221,1735890642615,-1211.25,9.548e-05,2]
[347507222,1735890642625,-500.0,9.548e-05,2]
[347507223,1735890642635,-500.0,9.548e-05,2]
[347507224,1735890642644,-500.0,9.548e-05,2]
[347507225,1735890642654,-178.23859159,9.548e-05,2]
[347507226,1735890642663,-1601.62,9.548e-05,2]
[347507227,1735890642673,-761.84,9.548e-05,2]
[347507228,1735890642683,-500.0,9.548e-05,2]
[347507229,1735890642692,-231.07760921,9.548e-05,2]
[347507230,1735890642701,-841.11,9.548e-05,2]
[347507231,1735890642711,-1828.84,9.548e-05,2]
[347507232,1735890642721,-500.0,9.548e-05,2]
[347507233,1735890642731,-1190.39,9.548e-05,2]
[347507234,1735890642740,-3834.53,9.548e-05,2]
[347507235,1735890642750,-500.0,9.548e-05,2]
[347507236,1735890642760,-500.0,9.548e-05,2]
[347507237,1735890642769,-1357.35,9.548e-05,2]
[347507238,1735890642778,-500.0,9.548e-05,2]
[347507239,1735890642787,-2092.59,9.548e-05,2]
[347507240,1735890642797,-500.0,9.548e-05,2]
[347507241,1735890642806,-2479.82,9.548e-05,2]
[347507242,1735890642815,-1575.63,9.548e-05,2]
[347507243,1735890642825,-771.09,9.548e-05,2]
[347507244,1735890642834,-455.20286775,9.548e-05,2]
[347507245,1735890642845,-1841.45,9.548e-05,2]
[347507246,1735890642854,-1799.78,9.548e-05,2]
[347507247,1735890642864,-500.0,9.548e-05,2]
[347507248,1735890642873,-4750.46162288,9.548e-05,2]
[347507249,1735890642921,-736.97837712,9.548e-05,2]
[347507250,1735890642930,-312.43581293,9.548e-05,2]
[347507251,1735890642942,-1685.77121904,9.548e-05,2]
[347507252,1735890642954,-484.57296803,9.548e-05,2]
[347507253,1735890642964,-522.95015293,9.548e-05,2]
[347507265,1735890646621,-507.05,9.547e-05,2]
[347507266,1735890646632,-1107.44984707,9.548e-05,2]
[347507267,1735890646642,-1480.2,9.548e-05,2]
[347507268,1735890646651,-500.0,9.548e-05,2]
[347507269,1735890646661,-1491.29,9.548e-05,2]
[347507270,1735890646670,-106.13853435,9.548e-05,2]
[347507344,1735890659564,250.0,8.672e-05,2]
[347507345,1735890668969,547.78,8.652e-05,2]
[347507346,1735890703410,250.0,8.625e-05,2]
[347507347,1735890712628,411.35,8.626e-05,2]
[347507348,1735890843468,300.0,8.634e-05,2]
[347507349,1735890890716,2200.0,8.22e-05,2]
[347507350,1735890916285,227.983,9.08e-05,2]
[347507352,1735890991191,250.0,8.588e-05,2]
[347507353,1735891175317,166.8,8.579e-05,2]
[347507354,1735891184585,1818.97,8.767e-05,2]
[347507355,1735891205578,1000.0,8.581e-05,2]
[347507356,1735891249890,170.13,8.58e-05,2]
[347507357,1735891290763,150.0,0.00016748,120]
[347507358,1735891316237,23900.0,8.586e-05,2]
[347507359,1735891471262,150.0,0.00018917,120]
[347507360,1735891487477,225.263,9.08e-05,2]
[347507361,1735891510607,150.0,8.827e-05,2]
[347507362,1735891513232,150.0,8.827e-05,2]
[347507363,1735891530975,250.0,8.562e-05,2]
[347507364,1735891532546,150.0,0.000172,120]
[347507365,1735891635240,1025.68,8.562e-05,2]
[347507366,1735891648988,250.0,8.562e-05,2]
[347507367,1735891657306,351.23,8.562e-05,2]
[347507368,1735891696187,1070.28,8.559e-05,2]
[347507369,1735891705962,1000.0,8.22e-05,2]
[347507370,1735891710771,150.0,0.00019467,120]
[347507371,1735891717412,2083.74,8.219e-05,2]
[347507372,1735891738006,500.0,8.22e-05,2]
[347507373,1735891741174,340.714,9.08e-05,2]
[347507374,1735891742121,2094.69,8.549e-05,2]
[347507375,1735891770850,150.0,0.00017549,120]
[347507377,1735891771540,2600.0,8.22e-05,2]
[347507378,1735891783383,171.17,7.397e-05,2]
[347507379,1735891783593,171.17,8.828e-05,2]
[347507380,1735891807565,156.34,8.546e-05,2]
[347507384,1735891831560,-150.0,9.318e-05,2]
[347507385,1735891831569,-858.2729,9.346e-05,2]
[347507386,1735891831579,-289.63111,9.4e-05,2]
[347507387,1735891831588,-400.0,9.4e-05,3]
[347507388,1735891831597,-300.0,9.444e-05,2]
[347507389,1735891831607,-863.01433174,9.445e-05,2]
[347507390,1735891831635,-478.31588386,9.445e-05,2]
[347507391,1735891831646,-550.0,9.445e-05,2]
[347507399,1735891831982,-1641.04428466,9.445e-05,2]
[347507404,1735891832023,-1467.62549974,9.445e-05,2]
[347507406,1735891832032,-784.37919159,9.445e-05,2]
[347507412,1735891832085,-6007.57200841,9.445e-05,2]
[347507414,1735891832094,-10506.27796783,9.445e-05,2]
[347507445,1735891837501,-562.48140947,9.445e-05,2]
[347507446,1735891837557,-155251.8006227,9.445e-05,2]
[347507447,1735891837566,-2035.2514,9.445e-05,2]
[347507448,1735891837575,-720.046,9.446e-05,2]
[347507449,1735891837585,-311.3678,9.446e-05,2]
[347507450,1735891837594,-1000.0,9.446e-05,2]
[347507451,1735891837604,-1751.589,9.446e-05,2]
[347507452,1735891837613,-2670.0105,9.447e-05,2]
[347507453,1735891837622,-7584.4858,9.447e-05,2]
[347507454,1735891837632,-500.0,9.447e-05,2]
[347507455,1735891837641,-2569.836,9.448e-05,2]
[347507456,1735891837650,-900.0,9.5e-05,3]
[347507457,1735891837659,-251.8,9.5e-05,2]
[347507458,1735891837668,-4817.718,9.513e-05,2]
[347507459,1735891837677,-193.999,9.513e-05,2]
[347507460,1735891837686,-495.2,9.513e-05,2]
[347507461,1735891837695,-204.25456895,9.523e-05,2]
[347507462,1735891837704,-305.82819948,9.523e-05,2]
[347507463,1735891837713,-206.80388136,9.523e-05,2]
[347507464,1735891837723,-500.0,9.523e-05,2]
[347507465,1735891837732,-500.0,9.523e-05,2]
[347507466,1735891837741,-500.0,9.543e-05,2]
[347507467,1735891837750,-500.0,9.543e-05,2]
[347507468,1735891837760,-1512.85,9.544e-05,2]
[347507470,1735891837769,-4296.05,9.544e-05,2]
[347507472,1735891837778,-13881.21,9.544e-05,2]
[347507474,1735891837787,-6791.9,9.544e-05,2]
[347507475,1735891837796,-5905.88,9.544e-05,2]
[347507476,1735891837809,-3207.66,9.544e-05,2]
[347507477,1735891837818,-1520.35,9.544e-05,2]
[347507478,1735891837827,-3486.44,9.544e-05,2]
[347507479,1735891837837,-1791.45,9.544e-05,2]
[347507480,1735891837847,-1659.18,9.544e-05,2]
[347507481,1735891837856,-4946.52,9.544e-05,2]
[347507482,1735891837866,-1412.34,9.544e-05,2]
[347507483,1735891837875,-1023.51,9.544e-05,2]
[347507484,1735891837885,-3374.68,9.544e-05,2]
[347507485,1735891837894,-4317.4,9.544e-05,2]
[347507486,1735891837903,-6648.14,9.544e-05,2]
[347507488,1735891837912,-734.99,9.545e-05,2]
[347507490,1735891837921,-541.01,9.545e-05,2]
[347507492,1735891837930,-7154.32,9.545e-05,2]
[347507494,1735891837939,-3263.97,9.545e-05,2]
[347507495,1735891837947,-8602.74,9.545e-05,2]
[347507497,1735891837956,-4297.42,9.545e-05,2]
[347507499,1735891837966,-7630.97,9.545e-05,2]
[347507500,1735891837975,-28267.77,9.545e-05,2]
[347507501,1735891837984,-500.0,9.545e-05,2]
[347507502,1735891837994,-62707.11886652,9.545e-05,2]
[347507503,1735891838005,-64007.08608384,9.545e-05,2]
[347507504,1735891838018,-9624.74887865,9.545e-05,2]
[347507505,1735891838053,-998.39519968,9.545e-05,2]
[347507506,1735891838066,-746.00526567,9.545e-05,2]
[347507507,1735891838079,-2254.88152453,9.545e-05,2]
[347507513,1735891839491,-474.44416233,9.544e-05,2]
[347507514,1735891839605,-3678.68583767,9.544e-05,2]
[347507515,1735891839614,-249276.71336233,9.545e-05,2]
[347507533,1735891842934,-1106.8,9.544e-05,2]
[347507534,1735891842944,-42520.20159701,9.545e-05,2]
[347507565,1735891845983,-765.18,9.543e-05,2]
[347507566,1735891845992,-70946.06831032,9.545e-05,2]
[347507567,1735891846015,-6872.4,9.545e-05,2]
[347507568,1735891846026,-4822.0,9.545e-05,2]
[347507570,1735891879034,250.0,8.58e-05,2]
[347507571,1735891883612,732.61,8.58e-05,2]
[347507572,1735891890734,150.0,0.00016764,120]
[347507573,1735891897276,74980.3428998,8.44e-05,7]
[347507574,1735891916582,716.22,9.1e-05,2]
[347507575,1735891928583,700.63,8.571e-05,2]
[347507576,1735891950748,150.0,0.00017098,120]
[347507578,1735891980980,1229.48,8.558e-05,2]
[347507579,1735892039521,1852.42,8.551e-05,2]
[347507580,1735892068952,159.24,8.551e-05,2]
[347507581,1735892069339,159.24,9.085e-05,2]
[347507582,1735892071341,225.25,8.551e-05,2]
[347507583,1735892073326,176.63,9.099e-05,2]
[347507584,1735892083986,1500.0,8.553e-05,2]
[347507585,1735892154284,21446.42,8.553e-05,2]
[347507586,1735892160901,1000.0,8.553e-05,2]
[347507587,1735892184360,332.674,9.07e-05,2]
[347507588,1735892190770,150.0,0.00016072,120]
[347507596,1735892204892,3559.06,8.539e-05,2]
[347507597,1735892207243,190.0,9.1e-05,4]
[347507598,1735892224744,190.0,9.1e-05,3]
[347507599,1735892249533,207.0,9.1e-05,3]
[347507601,1735892318928,1204.76,8.523e-05,2]
[347507602,1735892360716,3134.77,8.518e-05,2]
[347507603,1735892371012,150.0,0.00018593,120]
[347507604,1735892388849,23900.0,8.518e-05,2]
[347507605,1735892395448,194.39,6.814e-05,2]
[347507606,1735892395662,194.39,7.496e-05,2]
[347507607,1735892395862,194.39,8.177e-05,2]
[347507608,1735892396088,194.39,8.858e-05,2]
[347507609,1735892399062,250.0,8.517e-05,2]
[347507610,1735892410408,1059.44,8.522e-05,2]
[347507611,1735892416869,829.94,8.522e-05,2]
[347507612,1735892430779,150.0,0.00017288,120]
[347507613,1735892436352,200.0,8.522e-05,2]
[347507614,1735892477803,166.33,8.773e-05,2]
[347507615,1735892485798,200.0,8.512e-05,2]
[347507616,1735892490780,150.0,0.00017129,120]
[347507617,1735892506993,500.0,8.447e-05,2]
[347507618,1735892515084,250.0,8.447e-05,2]
[347507619,1735892550739,150.0,0.00018686,120]
[347507620,1735892561222,1319.01,8.442e-05,2]
[347507621,1735892566708,1679.62,8.443e-05,2]
[347507622,1735892618376,389.8,8.506e-05,2]
[347507623,1735892641036,2024.31,8.219e-05,2]
[347507625,1735892649776,4039.79,8.447e-05,2]
[347507628,1735892702901,1123.29,8.433e-05,2]
[347507629,1735892708665,150.0,8.827e-05,2]
[347507630,1735892708990,150.0,8.848e-05,2]
[347507631,1735892709303,150.0,8.868e-05,2]
[347507632,1735892709618,150.0,8.889e-05,2]
[347507633,1735892709978,150.0,8.909e-05,2]
[347507634,1735892710473,150.0,8.93e-05,2]
[347507635,1735892710644,150.0,8.95e-05,2]
[347507636,1735892711544,150.0,8.97e-05,2]
[347507637,1735892711688,150.0,8.991e-05,2]
[347507638,1735892711817,150.0,9.011e-05,2]
[347507639,1735892711985,150.0,9.032e-05,2]
[347507640,1735892712305,150.0,9.052e-05,2]
[347507641,1735892712623,150.0,9.073e-05,2]
[347507642,1735892713007,150.0,9.093e-05,2]
[347507643,1735892727236,150.0,8.827e-05,2]
[347507644,1735892727534,150.0,8.87e-05,2]
[347507645,1735892727865,150.0,8.913e-05,2]
[347507646,1735892728174,150.0,8.955e-05,2]
[347507647,1735892728484,150.0,8.998e-05,2]
[347507648,1735892728860,150.0,9.041e-05,2]
[347507649,1735892729157,150.0,9.083e-05,2]
[347507650,1735892731375,150.0,0.0001961,120]
[347507651,1735892740833,150.11545017,8.827e-05,2]
[347507655,1735892744518,150.0,8.827e-05,2]
[347507656,1735892744617,150.0,8.858e-05,2]
[347507657,1735892744907,150.0,8.889e-05,2]
[347507658,1735892745227,150.0,8.919e-05,2]
[347507659,1735892745800,150.0,8.95e-05,2]
[347507660,1735892746167,150.0,8.981e-05,2]
[347507661,1735892746669,150.0,9.011e-05,2]
[347507662,1735892746997,150.0,9.042e-05,2]
[347507663,1735892747313,150.0,9.073e-05,2]
[347507664,1735892749370,3871.9,8.403e-05,2]
[347507665,1735892757481,150.29468316,8.827e-05,2]
[347507666,1735892758559,325.607,9.07e-05,2]
[347507667,1735892759002,150.09678677,8.827e-05,2]
[347507668,1735892761023,150.0,8.827e-05,2]
[347507669,1735892762941,150.1915718,8.827e-05,2]
[347507670,1735892765746,150.20744654,8.827e-05,2]
[347507671,1735892768262,135.81606156,8.827e-05,2]
[347507672,1735892768285,14.40039761,8.827e-05,2]
[347507673,1735892772542,150.37943068,8.827e-05,2]
[347507674,1735892774286,150.0,8.827e-05,2]
[347507675,1735892774607,150.0,9.024e-05,2]
[347507679,1735892838433,250.0,8.384e-05,2]
[347507710,1735892876959,171.17,7.397e-05,2]
[347507726,1735892971618,150.0,0.0001771,120]
[347507727,1735892975553,166.88,8.393e-05,2]
[347507728,1735893031315,150.0,0.00017636,120]
[347507729,1735893031721,-150.0,9.103e-05,2]
[347507730,1735893031730,-150.0,9.113e-05,2]
[347507732,1735893031740,-150.0,9.126e-05,2]
[347507734,1735893031749,-90.0,9.134e-05,2]
[347507736,1735893031761,-60.0,9.134e-05,2]
[347507737,1735893031770,-150.0,9.134e-05,2]
[347507738,1735893031780,-150.0,9.154e-05,2]
[347507739,1735893031790,-150.0,9.165e-05,2]
[347507740,1735893031799,-25.47,9.166e-05,2]
[347507741,1735893031811,-274.53,9.166e-05,2]
[347507742,1735893031820,-3002.31887466,9.167e-05,2]
[347507743,1735893031832,-2898.29114452,9.167e-05,2]
[347507744,1735893031843,-295.49189213,9.167e-05,2]
[347507745,1735893031876,-1980.12414371,9.167e-05,2]
[347507746,1735893031887,-1962.35435189,9.167e-05,2]
[347507747,1735893031899,-2656.09167233,9.167e-05,2]
[347507748,1735893031942,-2900.0,9.167e-05,2]
[347507749,1735893032018,-1328.681,9.167e-05,2]
[347507750,1735893032035,-6053.1265088,9.167e-05,2]
[347507751,1735893032046,-1430.11950921,9.167e-05,2]
[347507752,1735893032058,-10105.40090275,9.167e-05,2]
[347507753,1735893032067,-150.0,9.169e-05,2]